[Event "46th GRE-chT Premier 2018"]
[Site "Rio Achaia"]
[Date "2018.07.10"]
[Round "1"]
[White "Loupos, Vasilios"]
[Black "Galanakis, Nikolaos"]
[Result "1/2-1/2"]
[ECO "A45"]
[WhiteElo "1927"]
[BlackElo "1579"]
[Annotator "NA"]
[PlyCount "102"]
[EventDate "2018.07.10"]
[EventType "team-tourn"]
[EventCountry "GRE"]
[SourceTitle "playchess.com"]
[Source "ChessBase"]
[SourceQuality "1"]
[TimeControl "40/5400+30:1800+30"]

1. d4 {[%emt 0:00:00]} Nf6 {[%emt 0:00:00]} 2. Bf4 {[%emt 0:00:00]} g6 {[%emt 0:00:00]} 3. Nc3 {[%emt 0:01:26]} Bg7 {[%emt 0:00:20]} 4. e3 {[%emt 0:01:05]} d6 {[%emt 0:00:18]} 5. Be2 {[%emt 0:01:12]} Nbd7 {[%emt 0:01:48]} 6. h4 {[%emt 0:01:25]} h5 {[%emt 0:02:22]} 7. Nh3 {[%emt 0:01:43]} O-O {[%emt 0:13:43]} 8. Qd2 {[%emt 0:07:37]} e5 {[%emt 0:10:15]} 9. Bg5 {[%emt 0:08:59]} c6 {[%emt 0:04:32]} 10. O-O-O {[%emt 0:24:43]} Qc7 {[%emt 0:01:09]} 11. dxe5 {[%emt 0:08:39]} dxe5 {[%emt 0:00:35]} 12. f3 {[%emt 0:03:38]} Nb6 {[%emt 0:05:34]} 13. e4 {[%emt 0:07:43]} Be6 {[%emt 0:01:23]} 14. Qd6 {[%emt 0:01:24]} Qxd6 {[%emt 0:04:01]} 15. Rxd6 {[%emt 0:00:12]} Rfd8 {[%emt 0:00:18]} 16. Rhd1 {[%emt 0:02:25]} Rxd6 {[%emt 0:01:27]} 17. Rxd6 {[%emt 0:00:22]} Kf8 {[%emt 0:01:11]} 18. Be3 {[%emt 0:03:00]} Ne8 {[%emt 0:07:52]} 19. Rd1 {[%emt 0:03:09]} Bxh3 {[%emt 0:01:19]} 20. gxh3 {[%emt 0:00:22]} Nf6 {[%emt 0:01:59]} 21. a4 {[%emt 0:02:15]} Ke8 {[%emt 0:03:00]} 22. a5 {[%emt 0:04:16]} Nbd7 {[%emt 0:00:24]} 23. a6 {[%emt 0:02:06]} b6 {[%emt 0:00:06]} 24. Rd6 {[%emt 0:00:49]} Rc8 {[%emt 0:00:04]} 25. Bg5 {[%emt 0:00:29]} Ke7 {[%emt 0:02:05]} 26. Rd1 {[%emt 0:00:43]} Nc5 {[%emt 0:01:35]} 27. f4 {[%emt 0:01:45]} Ke8 {[%emt 0:06:52]} 28. fxe5 {[%emt 0:03:50]} Nfxe4 {[%emt 0:00:27]} 29. Nxe4 {[%emt 0:00:34]} Nxe4 {[%emt 0:00:55]} 30. Bf4 {[%emt 0:02:26]} Nc5 {[%emt 0:03:20]} 31. b4 {[%emt 0:00:54]} Nd7 {[%emt 0:02:29]} 32. Re1 {[%emt 0:01:00]} Kf8 {[%emt 0:03:06]} 33. Bf3 {[%emt 0:00:43]} Kg8 {[%emt 0:02:35]} 34. e6 {[%emt 0:00:27]} fxe6 {[%emt 0:00:20]} 35. Rxe6 {[%emt 0:00:11]} Rf8 {[%emt 0:01:24]} 36. Bxc6 {[%emt 0:00:34]} Rxf4 {[%emt 0:00:04]} 37. Bxd7 {[%emt 0:00:14]} Rxb4 {[%emt 0:01:33]} 38. c3 {[%emt 0:02:58]} Bxc3 {[%emt 0:01:53]} 39. Rxg6+ {[%emt 0:00:09]} Kf7 {[%emt 0:00:18]} 40. Rc6 {[%emt 0:00:00]} Be5 {[%emt 0:00:00]} 41. Rc8 {[%emt 0:06:58]} Ke7 {[%emt 0:09:58]} 42. Bf5 {[%emt 0:05:11]} b5 {[%emt 0:12:01]} 43. Ra8 {[%emt 0:12:57]} Bd4 {[%emt 0:02:36]} 44. Kc2 {[%emt 0:01:20]} Bb6 {[%emt 0:02:03]} 45. Rh8 {[%emt 0:03:33]} Rxh4 {[%emt 0:11:00]} 46. Bg4 {[%emt 0:00:40]} Kd6 {[%emt 0:05:12]} 47. Rxh5 {[%emt 0:01:16]} Rxh5 {[%emt 0:00:05]} 48. Bxh5 {[%emt 0:00:07]} Kc5 {[%emt 0:00:03]} 49. Kb3 {[%emt 0:00:23]} b4 {[%emt 0:00:08]} 50. Be2 {[%emt 0:00:12]} Bd8 {[%emt 0:00:23]} 51. Bd3 {[%emt 0:00:12]} Kd5 1/2-1/2

[Event "46th GRE-chT Premier 2018"]
[Site "Rio Achaia"]
[Date "2018.07.10"]
[Round "1"]
[White "Laspas, Panagiotis"]
[Black "Vlahos, Kiriakos"]
[Result "1/2-1/2"]
[ECO "C29"]
[WhiteElo "1917"]
[BlackElo "2293"]
[Annotator "NA"]
[PlyCount "59"]
[EventDate "2018.07.10"]
[EventType "team-tourn"]
[EventCountry "GRE"]
[SourceTitle "playchess.com"]
[Source "ChessBase"]
[SourceQuality "1"]
[TimeControl "40/5400+30:1800+30"]

1. e4 {[%emt 0:00:00]} e5 2. Nc3 Nf6 {[%emt 0:00:56]} 3. f4 {[%emt 0:00:31]} d5 {[%emt 0:00:24]} 4. fxe5 {[%emt 0:00:22]} Nxe4 {[%emt 0:00:08]} 5. Qf3 {[%emt 0:00:30]} Nxc3 {[%emt 0:01:57]} 6. dxc3 {[%emt 0:00:45]} Be7 {[%emt 0:00:18]} 7. Bf4 {[%emt 0:00:57]} O-O {[%emt 0:00:46]} 8. O-O-O {[%emt 0:00:28]} c6 {[%emt 0:00:21]} 9. Bd3 {[%emt 0:01:09]} Na6 {[%emt 0:09:28]} 10. Qg3 {[%emt 0:03:31]} Kh8 {[%emt 0:04:13]} 11. Nf3 {[%emt 0:08:06]} Nc5 {[%emt 0:00:16]} 12. h4 {[%emt 0:03:00]} Nxd3+ {[%emt 0:04:19]} 13. Rxd3 {[%emt 0:00:35]} Bf5 {[%emt 0:04:07]} 14. Rd2 {[%emt 0:03:08]} Qa5 {[%emt 0:13:10]} 15. Kb1 {[%emt 0:06:29]} b5 {[%emt 0:04:31]} 16. Nd4 {[%emt 0:20:41]} Bd7 {[%emt 0:00:36]} 17. Bg5 {[%emt 0:00:46]} Rae8 {[%emt 0:02:34]} 18. Qf3 {[%emt 0:26:57]} Qd8 {[%emt 0:03:58]} 19. Qh5 {[%emt 0:03:27]} a5 {[%emt 0:00:38]} 20. Rf2 {[%emt 0:00:45]} Kg8 {[%emt 0:27:39]} 21. Rf3 {[%emt 0:04:28]} Qc8 {[%emt 0:01:00]} 22. Rg3 {[%emt 0:01:24]} Kh8 {[%emt 0:15:50]} 23. Bxe7 {[%emt 0:12:35]} Rxe7 {[%emt 0:00:04]} 24. Rxg7 {[%emt 0:00:49]} Kxg7 {[%emt 0:00:22]} 25. Qg5+ {[%emt 0:00:21]} Kh8 {[%emt 0:00:03]} 26. Qf6+ {[%emt 0:00:27]} Kg8 {[%emt 0:00:04]} 27. Qg5+ {[%emt 0:00:39]} Kh8 {[%emt 0:00:04]} 28. Qf6+ {[%emt 0:00:28]} Kg8 {[%emt 0:00:03]} 29. Qg5+ {[%emt 0:00:37]} Kh8 {[%emt 0:00:05]} 30. Qf6+ {[%emt 0:00:25]} 1/2-1/2

[Event "46th GRE-chT Premier 2018"]
[Site "Rio Achaia"]
[Date "2018.07.10"]
[Round "1"]
[White "Betsakos, Konstantinos"]
[Black "Symeonidis, Theofilos"]
[Result "1/2-1/2"]
[ECO "E09"]
[WhiteElo "1913"]
[BlackElo "1605"]
[Annotator "NA"]
[PlyCount "61"]
[EventDate "2018.07.10"]
[EventType "team-tourn"]
[EventCountry "GRE"]
[SourceTitle "playchess.com"]
[Source "ChessBase"]
[SourceQuality "1"]
[TimeControl "40/5400+30:1800+30"]

1. d4 {[%emt 0:00:00]} Nf6 {[%emt 0:00:00]} 2. c4 {[%emt 0:00:00]} e6 {[%emt 0:00:00]} 3. g3 {[%emt 0:00:10]} d5 {[%emt 0:00:31]} 4. Bg2 {[%emt 0:00:20]} Be7 {[%emt 0:01:03]} 5. Nf3 {[%emt 0:00:08]} O-O {[%emt 0:00:54]} 6. O-O {[%emt 0:00:04]} c6 {[%emt 0:01:20]} 7. Nbd2 Nbd7 {[%emt 0:00:35]} 8. Qc2 {[%emt 0:00:53]} b6 {[%emt 0:01:19]} 9. e4 {[%emt 0:00:36]} dxe4 {[%emt 0:00:27]} 10. Nxe4 {[%emt 0:00:06]} Nxe4 {[%emt 0:00:22]} 11. Qxe4 {[%emt 0:00:06]} Bb7 {[%emt 0:00:58]} 12. Rd1 {[%emt 0:01:23]} Nf6 {[%emt 0:00:53]} 13. Qe2 {[%emt 0:06:01]} Qc8 {[%emt 0:01:13]} 14. Bf4 {[%emt 0:07:10]} Re8 {[%emt 0:05:32]} 15. a3 {[%emt 0:08:23]} c5 {[%emt 0:08:05]} 16. dxc5 {[%emt 0:00:57]} Bxc5 {[%emt 0:02:10]} 17. b4 {[%emt 0:00:36]} Bf8 {[%emt 0:01:19]} 18. Rac1 {[%emt 0:07:51]} a5 {[%emt 0:07:41]} 19. Qb2 {[%emt 0:11:22]} axb4 {[%emt 0:04:57]} 20. axb4 {[%emt 0:01:05]} Ra4 {[%emt 0:04:09]} 21. c5 {[%emt 0:14:29]} bxc5 {[%emt 0:08:39]} 22. bxc5 {[%emt 0:01:39]} Qa8 {[%emt 0:03:43]} 23. Ne1 {[%emt 0:11:35]} Bxg2 {[%emt 0:01:05]} 24. Nxg2 {[%emt 0:00:04]} Ne4 {[%emt 0:11:31]} 25. Be3 {[%emt 0:11:24]} Rc8 {[%emt 0:01:10]} 26. Nf4 {[%emt 0:11:32]} Nxc5 {[%emt 0:13:35]} 27. Qc2 {[%emt 0:04:26]} Ra6 {[%emt 0:06:16]} 28. Nd3 {[%emt 0:01:06]} Nxd3 {[%emt 0:05:24]} 29. Qxc8 {[%emt 0:00:32]} Nxc1 {[%emt 0:00:09]} 30. Rxc1 {[%emt 0:00:26]} Ra1 {[%emt 0:01:44]} 31. Qc3 {[%emt 0:00:16]} 1/2-1/2

[Event "46th GRE-chT Premier 2018"]
[Site "Rio Achaia"]
[Date "2018.07.10"]
[Round "1"]
[White "Koutsidi, Amalia"]
[Black "Serpetsidaki, Eva"]
[Result "1-0"]
[ECO "B01"]
[WhiteElo "1911"]
[BlackElo "1591"]
[Annotator "NA"]
[PlyCount "65"]
[EventDate "2018.07.10"]
[EventType "team-tourn"]
[EventCountry "GRE"]
[SourceTitle "playchess.com"]
[Source "ChessBase"]
[SourceQuality "1"]
[TimeControl "40/5400+30:1800+30"]

1. e4 {[%emt 0:00:00]} d5 {[%emt 0:00:00]} 2. exd5 {[%emt 0:00:00]} Qxd5 {[%emt 0:00:00]} 3. Nc3 {[%emt 0:00:00]} Qd6 {[%emt 0:00:00]} 4. d4 {[%emt 0:00:57]} Nf6 {[%emt 0:00:00]} 5. Nf3 {[%emt 0:13:14]} a6 {[%emt 0:00:00]} 6. g3 {[%emt 0:05:52]} Nc6 {[%emt 0:00:49]} 7. Bg2 {[%emt 0:05:49]} Bg4 {[%emt 0:00:08]} 8. Ne2 {[%emt 0:22:41]} e6 {[%emt 0:00:50]} 9. O-O {[%emt 0:02:35]} Be7 {[%emt 0:00:08]} 10. c3 {[%emt 0:00:51]} O-O {[%emt 0:00:45]} 11. Bf4 {[%emt 0:03:22]} Qd7 {[%emt 0:00:43]} 12. Re1 {[%emt 0:02:39]} Rad8 {[%emt 0:00:19]} 13. Qb3 {[%emt 0:09:15]} Qc8 {[%emt 0:00:28]} 14. Ne5 {[%emt 0:02:03]} Na5 {[%emt 0:02:59]} 15. Qa4 {[%emt 0:01:57]} b6 {[%emt 0:00:10]} 16. b4 {[%emt 0:00:53]} Nb7 {[%emt 0:00:10]} 17. Nc6 {[%emt 0:08:04]} Rd7 {[%emt 0:00:58]} 18. Qxa6 {[%emt 0:07:00]} Nd6 {[%emt 0:01:03]} 19. Qxc8 {[%emt 0:02:24]} Rxc8 {[%emt 0:00:07]} 20. a4 {[%emt 0:01:33]} Nd5 {[%emt 0:00:28]} 21. Bxd5 {[%emt 0:01:15]} exd5 {[%emt 0:00:09]} 22. Ne5 {[%emt 0:00:10]} Be6 {[%emt 0:01:31]} 23. Nxd7 {[%emt 0:00:14]} Bxd7 {[%emt 0:00:05]} 24. Nc1 {[%emt 0:00:47]} Bf6 {[%emt 0:00:33]} 25. Be5 {[%emt 0:01:46]} Bxe5 {[%emt 0:01:13]} 26. Rxe5 {[%emt 0:00:17]} Re8 {[%emt 0:00:06]} 27. Rxe8+ Bxe8 {[%emt 0:00:14]} 28. a5 {[%emt 0:01:19]} Nb5 {[%emt 0:00:55]} 29. Ne2 {[%emt 0:00:53]} Bc6 {[%emt 0:00:10]} 30. axb6 {[%emt 0:00:23]} cxb6 {[%emt 0:00:09]} 31. Ra6 {[%emt 0:00:06]} Kf8 {[%emt 0:01:07]} 32. Rxb6 {[%emt 0:00:17]} Bd7 {[%emt 0:00:04]} 33. Kf1 {[%emt 0:01:10]} 1-0

[Event "46th GRE-chT Premier 2018"]
[Site "Rio Achaia"]
[Date "2018.07.10"]
[Round "1"]
[White "Gavriil, Odysseas-Panagiotis"]
[Black "Tsivelekidou, Evgenia"]
[Result "1/2-1/2"]
[ECO "A45"]
[WhiteElo "1910"]
[BlackElo "2007"]
[Annotator "NA"]
[PlyCount "106"]
[EventDate "2018.07.10"]
[EventType "team-tourn"]
[EventCountry "GRE"]
[SourceTitle "playchess.com"]
[Source "ChessBase"]
[SourceQuality "1"]
[TimeControl "40/5400+30:1800+30"]

1. d4 {[%emt 0:00:00]} Nf6 {[%emt 0:00:00]} 2. Bg5 {[%emt 0:00:00]} d5 {[%emt 0:00:00]} 3. Bxf6 {[%emt 0:00:00]} exf6 {[%emt 0:00:00]} 4. e3 {[%emt 0:00:06]} c6 {[%emt 0:00:14]} 5. g3 {[%emt 0:02:01]} Bd6 {[%emt 0:02:23]} 6. Bg2 {[%emt 0:00:28]} Qb6 {[%emt 0:02:53]} 7. Qc1 {[%emt 0:11:22]} O-O {[%emt 0:05:21]} 8. Ne2 {[%emt 0:12:55]} f5 {[%emt 0:06:50]} 9. O-O {[%emt 0:01:16]} Nd7 {[%emt 0:02:08]} 10. Nd2 {[%emt 0:01:36]} Nf6 {[%emt 0:04:01]} 11. c4 {[%emt 0:05:38]} Qd8 {[%emt 0:06:32]} 12. Qc2 {[%emt 0:20:55]} Be6 {[%emt 0:07:12]} 13. a3 {[%emt 0:05:45]} a5 {[%emt 0:05:03]} 14. c5 {[%emt 0:00:50]} Bc7 {[%emt 0:04:18]} 15. b4 {[%emt 0:00:17]} axb4 {[%emt 0:01:42]} 16. axb4 {[%emt 0:00:12]} Qd7 {[%emt 0:06:12]} 17. Nc3 {[%emt 0:07:23]} Ng4 {[%emt 0:11:09]} 18. Qb2 {[%emt 0:08:00]} g5 {[%emt 0:11:59]} 19. b5 Rxa1 {[%emt 0:03:21]} 20. Rxa1 {[%emt 0:03:33]} f4 {[%emt 0:00:38]} 21. e4 {[%emt 0:06:02]} fxg3 {[%emt 0:03:54]} 22. hxg3 {[%emt 0:00:39]} f5 {[%emt 0:01:25]} 23. exd5 {[%emt 0:03:18]} cxd5 {[%emt 0:02:36]} 24. Qb3 {[%emt 0:01:04]} Nf6 {[%emt 0:01:32]} 25. Re1 {[%emt 0:01:45]} Ne4 {[%emt 0:02:30]} 26. Ndxe4 {[%emt 0:01:37]} fxe4 {[%emt 0:00:29]} 27. Ne2 {[%emt 0:01:16]} Qf7 {[%emt 0:01:44]} 28. Qe3 {[%emt 0:01:22]} h6 {[%emt 0:00:26]} 29. Rf1 {[%emt 0:00:50]} Bg4 {[%emt 0:00:38]} 30. Nc3 {[%emt 0:01:56]} Bf3 {[%emt 0:01:30]} 31. Re1 {[%emt 0:01:02]} Bg4 {[%emt 0:03:05]} 32. Rf1 {[%emt 0:01:02]} Qf5 {[%emt 0:00:31]} 33. c6 {[%emt 0:00:59]} bxc6 {[%emt 0:00:04]} 34. bxc6 {[%emt 0:00:04]} Rf6 {[%emt 0:00:23]} 35. Nb5 {[%emt 0:00:43]} Rxc6 {[%emt 0:00:28]} 36. Nxc7 {[%emt 0:00:24]} Rxc7 {[%emt 0:00:05]} 37. f3 {[%emt 0:00:24]} Bxf3 {[%emt 0:01:07]} 38. Bxf3 {[%emt 0:00:13]} exf3 {[%emt 0:00:14]} 39. Rxf3 {[%emt 0:00:33]} Qe4 {[%emt 0:00:58]} 40. Qxe4 {[%emt 0:00:00]} dxe4 {[%emt 0:00:00]} 41. Re3 {[%emt 0:00:51]} Re7 {[%emt 0:00:24]} 42. Kf2 {[%emt 0:05:18]} h5 {[%emt 0:02:50]} 43. Re2 {[%emt 0:03:07]} Kg7 {[%emt 0:07:08]} 44. Ke3 {[%emt 0:00:47]} Kg6 {[%emt 0:00:26]} 45. Rf2 {[%emt 0:04:11]} h4 {[%emt 0:02:46]} 46. gxh4 {[%emt 0:00:13]} gxh4 {[%emt 0:00:07]} 47. d5 {[%emt 0:00:33]} Kg5 {[%emt 0:01:21]} 48. d6 {[%emt 0:00:59]} Rd7 {[%emt 0:04:54]} 49. Kxe4 {[%emt 0:00:31]} Rxd6 {[%emt 0:00:18]} 50. Kf3 {[%emt 0:02:16]} Rd3+ {[%emt 0:01:13]} 51. Kg2 {[%emt 0:00:25]} Kg4 {[%emt 0:00:23]} 52. Rc2 {[%emt 0:00:47]} Rd4 {[%emt 0:00:40]} 53. Rb2 {[%emt 0:00:15]} Rc4 {[%emt 0:00:28]} 1/2-1/2

[Event "46th GRE-chT Premier 2018"]
[Site "Rio Achaia"]
[Date "2018.07.10"]
[Round "1"]
[White "Serefidou, Despina"]
[Black "Paparizou, Eleni"]
[Result "1-0"]
[ECO "C45"]
[WhiteElo "1906"]
[BlackElo "1274"]
[Annotator "NA"]
[PlyCount "79"]
[EventDate "2018.07.10"]
[EventType "team-tourn"]
[EventCountry "GRE"]
[SourceTitle "playchess.com"]
[Source "ChessBase"]
[SourceQuality "1"]
[TimeControl "40/5400+30:1800+30"]

1. e4 {[%emt 0:00:00]} e5 {[%emt 0:00:00]} 2. Nf3 {[%emt 0:00:00]} Nc6 {[%emt 0:00:10]} 3. d4 {[%emt 0:00:00]} exd4 {[%emt 0:01:21]} 4. Nxd4 {[%emt 0:00:00]} Bc5 {[%emt 0:02:38]} 5. Nb3 {[%emt 0:00:25]} Qf6 {[%emt 0:02:31]} 6. Nxc5 {[%emt 0:01:26]} d6 {[%emt 0:01:33]} 7. Nb3 {[%emt 0:00:27]} Be6 {[%emt 0:02:13]} 8. Nc3 {[%emt 0:01:50]} Nge7 {[%emt 0:01:10]} 9. Be3 {[%emt 0:02:59]} O-O {[%emt 0:07:11]} 10. Qf3 {[%emt 0:01:01]} Qxf3 {[%emt 0:06:57]} 11. gxf3 {[%emt 0:00:04]} a6 12. O-O-O {[%emt 0:00:36]} Rad8 {[%emt 0:05:06]} 13. Nd4 {[%emt 0:00:56]} Bd7 {[%emt 0:06:42]} 14. Nxc6 {[%emt 0:00:38]} Bxc6 {[%emt 0:00:15]} 15. Nd5 {[%emt 0:00:47]} Nxd5 {[%emt 0:00:30]} 16. exd5 {[%emt 0:00:03]} Bd7 {[%emt 0:00:46]} 17. Rg1 {[%emt 0:00:26]} Bf5 {[%emt 0:04:41]} 18. Bd3 {[%emt 0:00:21]} Bg6 {[%emt 0:02:18]} 19. Bxg6 {[%emt 0:00:51]} fxg6 {[%emt 0:00:57]} 20. f4 {[%emt 0:00:51]} Rf7 {[%emt 0:06:53]} 21. Rg5 {[%emt 0:02:15]} Re8 {[%emt 0:04:55]} 22. h4 {[%emt 0:00:41]} Rf5 {[%emt 0:02:20]} 23. Rxf5 {[%emt 0:00:17]} gxf5 {[%emt 0:00:07]} 24. c4 {[%emt 0:00:41]} Kf7 {[%emt 0:00:29]} 25. Kd2 {[%emt 0:01:09]} h5 {[%emt 0:04:30]} 26. b4 {[%emt 0:01:24]} Rb8 {[%emt 0:04:07]} 27. c5 {[%emt 0:02:19]} Rd8 {[%emt 0:00:57]} 28. Kc3 {[%emt 0:00:23]} g6 {[%emt 0:03:21]} 29. a4 {[%emt 0:00:19]} Ke7 {[%emt 0:01:36]} 30. Kc4 {[%emt 0:00:22]} Rc8 {[%emt 0:03:13]} 31. Bd4 {[%emt 0:00:24]} Kd7 {[%emt 0:02:19]} 32. Re1 {[%emt 0:00:37]} Rb8 {[%emt 0:02:34]} 33. Re6 {[%emt 0:00:22]} Rg8 {[%emt 0:03:42]} 34. Bf6 {[%emt 0:00:27]} Re8 {[%emt 0:00:50]} 35. Rxe8 {[%emt 0:00:11]} Kxe8 {[%emt 0:00:13]} 36. cxd6 {[%emt 0:00:14]} cxd6 {[%emt 0:00:49]} 37. b5 {[%emt 0:00:11]} Kd7 {[%emt 0:03:58]} 38. bxa6 {[%emt 0:00:17]} bxa6 {[%emt 0:00:34]} 39. Kb4 {[%emt 0:00:08]} Kc7 {[%emt 0:01:12]} 40. Ka5 {[%emt 0:00:00]} 1-0

[Event "46th GRE-chT Premier 2018"]
[Site "Rio Achaia"]
[Date "2018.07.10"]
[Round "1"]
[White "Brokalakis - Gounaris, Christos"]
[Black "Bardis, Harilaos-Panagiotis"]
[Result "1/2-1/2"]
[ECO "E06"]
[WhiteElo "1901"]
[BlackElo "1866"]
[Annotator "NA"]
[PlyCount "93"]
[EventDate "2018.07.10"]
[EventType "team-tourn"]
[EventCountry "GRE"]
[SourceTitle "playchess.com"]
[Source "ChessBase"]
[SourceQuality "1"]
[TimeControl "40/5400+30:1800+30"]

1. d4 {[%emt 0:00:00]} Nf6 {[%emt 0:00:00]} 2. c4 {[%emt 0:00:00]} e6 {[%emt 0:00:00]} 3. Nf3 {[%emt 0:01:22]} d5 {[%emt 0:00:58]} 4. g3 {[%emt 0:00:16]} Be7 {[%emt 0:00:20]} 5. Bg2 {[%emt 0:00:42]} O-O {[%emt 0:00:09]} 6. O-O {[%emt 0:00:12]} dxc4 {[%emt 0:00:25]} 7. Qa4 {[%emt 0:01:38]} a6 {[%emt 0:03:08]} 8. Qxc4 {[%emt 0:00:36]} b5 {[%emt 0:01:48]} 9. Qc2 {[%emt 0:00:35]} Bb7 {[%emt 0:02:21]} 10. Bd2 {[%emt 0:00:26]} Be4 {[%emt 0:04:03]} 11. Qc1 {[%emt 0:00:27]} c6 {[%emt 0:00:04]} 12. Be3 {[%emt 0:05:55]} Nd5 {[%emt 0:04:51]} 13. Nc3 {[%emt 0:03:33]} Nxc3 {[%emt 0:01:47]} 14. Qxc3 {[%emt 0:02:46]} Nd7 {[%emt 0:04:23]} 15. Rac1 {[%emt 0:04:37]} Rc8 {[%emt 0:01:14]} 16. Rfd1 {[%emt 0:05:05]} Qc7 {[%emt 0:11:21]} 17. Ng5 {[%emt 0:09:13]} Bxg2 {[%emt 0:01:07]} 18. Kxg2 {[%emt 0:00:31]} Qb7 {[%emt 0:04:15]} 19. Kg1 {[%emt 0:10:08]} Bxg5 {[%emt 0:05:17]} 20. Bxg5 {[%emt 0:00:09]} c5 {[%emt 0:00:21]} 21. Be7 {[%emt 0:11:39]} cxd4 {[%emt 0:02:16]} 22. Qxd4 {[%emt 0:01:51]} Rxc1 {[%emt 0:00:59]} 23. Rxc1 {[%emt 0:00:38]} Re8 {[%emt 0:00:51]} 24. Bb4 {[%emt 0:15:51]} h6 {[%emt 0:05:50]} 25. Rd1 {[%emt 0:06:45]} Nf6 {[%emt 0:00:48]} 26. Bc3 {[%emt 0:02:18]} Qe4 {[%emt 0:00:47]} 27. Qxe4 {[%emt 0:01:47]} Nxe4 {[%emt 0:00:03]} 28. Bb4 {[%emt 0:03:21]} Rc8 {[%emt 0:01:39]} 29. f3 {[%emt 0:00:20]} Nf6 {[%emt 0:03:23]} 30. e4 {[%emt 0:00:20]} Rc4 {[%emt 0:01:34]} 31. a3 {[%emt 0:00:23]} Rc6 {[%emt 0:01:13]} 32. Rd6 {[%emt 0:00:30]} Rxd6 {[%emt 0:03:26]} 33. Bxd6 {[%emt 0:00:05]} Nd7 {[%emt 0:00:07]} 34. Kf2 {[%emt 0:00:56]} Nb6 {[%emt 0:00:12]} 35. b3 {[%emt 0:00:07]} f6 {[%emt 0:07:04]} 36. f4 {[%emt 0:05:28]} Kf7 {[%emt 0:03:20]} 37. Ke3 {[%emt 0:00:25]} Nc8 {[%emt 0:01:06]} 38. Bc5 {[%emt 0:01:00]} Ke8 {[%emt 0:00:11]} 39. Kd4 {[%emt 0:00:21]} g6 {[%emt 0:00:33]} 40. Kc3 {[%emt 0:00:00]} Kd7 {[%emt 0:00:00]} 41. Kb4 {[%emt 0:20:12]} Kc6 42. Bf8 {[%emt 0:01:06]} h5 {[%emt 0:03:13]} 43. Ka5 {[%emt 0:00:21]} Kb7 {[%emt 0:00:05]} 44. Bc5 {[%emt 0:01:43]} Kc6 {[%emt 0:00:13]} 45. Bf8 {[%emt 0:03:26]} Kb7 {[%emt 0:00:15]} 46. Bc5 {[%emt 0:00:50]} Kc6 {[%emt 0:00:05]} 47. Bf8 {[%emt 0:00:18] Kd5} 1/2-1/2

[Event "46th GRE-chT Premier 2018"]
[Site "Rio Achaia"]
[Date "2018.07.10"]
[Round "1"]
[White "Kalofonos, Panayotis"]
[Black "Kadianis, Georgios"]
[Result "1-0"]
[ECO "C48"]
[WhiteElo "1896"]
[BlackElo "2002"]
[Annotator "NA"]
[PlyCount "94"]
[EventDate "2018.07.10"]
[EventType "team-tourn"]
[EventCountry "GRE"]
[SourceTitle "playchess.com"]
[Source "ChessBase"]
[SourceQuality "1"]
[TimeControl "40/5400+30:1800+30"]

1. e4 {[%emt 0:00:00]} e5 {[%emt 0:00:00]} 2. Nf3 {[%emt 0:00:00]} Nc6 {[%emt 0:00:00]} 3. Nc3 {[%emt 0:00:00]} Nf6 {[%emt 0:00:00]} 4. Bb5 {[%emt 0:00:00]} Bd6 {[%emt 0:01:52]} 5. a3 {[%emt 0:00:29]} O-O {[%emt 0:00:32]} 6. d3 {[%emt 0:00:04]} Nd4 {[%emt 0:02:42]} 7. Bc4 {[%emt 0:03:09]} c6 {[%emt 0:02:51]} 8. Be3 {[%emt 0:05:50]} Ne6 {[%emt 0:11:19]} 9. d4 {[%emt 0:10:39]} Ng4 {[%emt 0:08:07]} 10. Nxe5 {[%emt 0:20:08]} Nxe3 {[%emt 0:02:39]} 11. fxe3 {[%emt 0:00:05]} Bxe5 {[%emt 0:01:31]} 12. dxe5 {[%emt 0:00:07]} Qh4+ {[%emt 0:02:17]} 13. g3 {[%emt 0:00:12]} Qg5 {[%emt 0:01:04]} 14. Qe2 {[%emt 0:07:16]} Qxe5 {[%emt 0:00:26]} 15. Rf1 {[%emt 0:03:38]} b5 {[%emt 0:03:08]} 16. Rf5 {[%emt 0:11:26]} Qc7 {[%emt 0:01:18]} 17. Bxe6 {[%emt 0:00:58]} dxe6 {[%emt 0:00:27]} 18. Rc5 {[%emt 0:01:11]} a5 {[%emt 0:02:39]} 19. Qxb5 {[%emt 0:04:18]} Qa7 {[%emt 0:31:27]} 20. Qxc6 {[%emt 0:11:41]} Rb8 {[%emt 0:09:21]} 21. O-O-O {[%emt 0:03:03]} Bb7 {[%emt 0:02:09]} 22. Qb5 {[%emt 0:10:09]} Bxe4 {[%emt 0:03:09]} 23. Qxa5 {[%emt 0:00:06]} Qb7 {[%emt 0:00:07]} 24. Rb5 {[%emt 0:00:24]} Qa8 {[%emt 0:02:22]} 25. Nxe4 {[%emt 0:00:07]} Rxb5 {[%emt 0:00:44]} 26. Nf6+ {[%emt 0:02:38]} gxf6 {[%emt 0:00:28]} 27. Qxb5 {[%emt 0:00:01]} Qg2 {[%emt 0:01:48]} 28. Qf1 {[%emt 0:04:47]} Qxh2 {[%emt 0:03:19]} 29. Rd2 {[%emt 0:01:28]} Qh6 {[%emt 0:00:31]} 30. Qf4 {[%emt 0:00:32]} Qg6 {[%emt 0:01:11]} 31. e4 {[%emt 0:00:25]} e5 {[%emt 0:00:41]} 32. Qf3 {[%emt 0:00:22]} Kg7 {[%emt 0:00:39]} 33. c4 {[%emt 0:00:36]} Rc8 {[%emt 0:01:16]} 34. b3 {[%emt 0:00:12]} Qg5 {[%emt 0:00:45]} 35. Qf5 {[%emt 0:00:35]} Qxf5 {[%emt 0:02:45]} 36. exf5 {[%emt 0:00:04]} Kh6 {[%emt 0:00:20]} 37. a4 {[%emt 0:01:14]} Kg5 {[%emt 0:00:11]} 38. a5 {[%emt 0:00:26]} Kxf5 {[%emt 0:00:12]} 39. a6 {[%emt 0:00:14]} e4 {[%emt 0:00:16]} 40. a7 {[%emt 0:00:00]} e3 {[%emt 0:00:00]} 41. Ra2 {[%emt 0:01:47]} Ra8 {[%emt 0:01:29]} 42. b4 {[%emt 0:01:09]} Ke4 {[%emt 0:00:14]} 43. b5 {[%emt 0:00:23]} Kd3 {[%emt 0:00:57]} 44. b6 {[%emt 0:01:11]} e2 {[%emt 0:00:29]} 45. Ra3+ {[%emt 0:00:28]} Kxc4 {[%emt 0:01:19]} 46. Kd2 {[%emt 0:00:03]} Re8 {[%emt 0:00:33]} 47. Ke1 {[%emt 0:00:06]} Kd5 1-0